bitfinex-derivatives/quotes_BTCF0:USTF0_20250918
["timestamp","ask_amount","ask_price","bid_price","bid_amount"]
[1758162866682,1.6719998,116590.0,116580.0,0.29671803]
[1758162870479,1.4219998,116590.0,116580.0,0.03446]
[1758162870680,1.4219998,116590.0,116580.0,0.29671803]
[1758162871986,1.6719998,116590.0,116580.0,0.29671803]
[1758162878194,1.6719998,116590.0,116580.0,0.03446]
[1758162878399,1.6719998,116590.0,116580.0,0.29671803]
[1758162878897,1.6719998,116590.0,116580.0,0.03446]
[1758162879098,1.40974177,116590.0,116580.0,0.03528]
[1758162879299,1.4219998,116590.0,116580.0,0.29753803]
[1758162880798,1.4219998,116590.0,116580.0,0.03528]
[1758162881194,1.4219998,116590.0,116580.0,0.29753803]
[1758162881700,1.4219998,116590.0,116580.0,0.03528]
[1758162881905,1.93425783,116590.0,116570.0,0.03538]
[1758162882196,0.62305803,116580.0,116570.0,0.03538]
[1758162882401,0.62305803,116580.0,116570.0,0.03528]
[1758162883507,0.62305803,116580.0,116570.0,0.03628]
[1758162884203,0.62305803,116580.0,116570.0,0.03528]
[1758162884905,0.62305803,116580.0,116570.0,0.29753803]
[1758162884906,0.3608,116580.0,116570.0,0.29753803]
[1758162885099,0.62305803,116580.0,116570.0,0.29753803]
[1758162885501,0.62305803,116580.0,116570.0,0.03528]
[1758162885702,0.62305803,116580.0,116570.0,0.29753803]
[1758162885901,0.3608,116580.0,116570.0,0.29753803]
[1758162886103,0.62305803,116580.0,116570.0,0.29753803]
[1758162888108,0.62305803,116580.0,116570.0,0.03528]
[1758162888309,0.62305803,116580.0,116570.0,0.29753803]
[1758162891314,0.62305803,116580.0,116570.0,0.03528]
[1758162891611,0.62305803,116580.0,116570.0,0.29753803]
[1758162892409,0.64640803,116580.0,116570.0,0.29753803]
[1758162894716,0.64640803,116580.0,116570.0,0.03528]
[1758162894905,0.64640803,116580.0,116570.0,0.29753803]
[1758162895412,1.16351,116580.0,116570.0,0.29753803]
[1758162895709,1.42576803,116580.0,116570.0,0.29753803]
[1758162901212,1.68802606,116580.0,116570.0,0.29753803]
[1758162903608,1.42576803,116580.0,116570.0,0.29753803]
[1758162905520,1.40241803,116580.0,116570.0,0.29753803]
[1758162905815,1.14016,116580.0,116570.0,0.29761224]
[1758162908622,1.16351,116580.0,116570.0,0.29761224]
[1758162914116,0.02335,116580.0,116570.0,0.29761224]
[1758162914323,0.80267,116580.0,116570.0,0.29761224]
[1758162914517,0.02335,116580.0,116570.0,0.54761224]
[1758162914717,0.02335,116580.0,116570.0,1.19841224]
[1758162914917,0.02335,116580.0,116570.0,1.56883812]
[1758162915316,0.02335,116580.0,116570.0,1.46074448]
[1758162916023,0.02335,116580.0,116570.0,1.53790987]
[1758162917425,0.02335,116580.0,116570.0,1.27557763]
[1758162919529,0.02335,116580.0,116570.0,1.92365097]
[1758162919727,0.01958177,116590.0,116570.0,1.92365097]
[1758162919728,0.02331,116610.0,116600.0,0.05395544]
[1758162919922,0.02331,116610.0,116600.0,0.67708768]
[1758162921124,0.80259,116620.0,116610.0,0.03626]
[1758162921429,0.80259,116620.0,116610.0,0.29859224]
[1758162922420,0.02331,116620.0,116610.0,0.29859224]
[1758162924233,0.02331,116620.0,116610.0,0.29959224]
[1758162924422,0.02331,116620.0,116610.0,0.03726]
[1758162924734,0.02331,116620.0,116610.0,0.66039224]
[1758162925233,0.02331,116620.0,116610.0,0.66139224]
[1758162926428,0.02331,116620.0,116610.0,0.92372448]
[1758162926633,0.38075842,116630.0,116620.0,0.03626]
[1758162926634,0.82242842,116630.0,116620.0,0.03626]
[1758162926834,0.82242842,116630.0,116620.0,0.65939224]
[1758162927936,0.82242842,116630.0,116620.0,0.29859224]
[1758162931228,0.82242842,116630.0,116620.0,0.03626]
[1758162931533,1.44556066,116630.0,116620.0,0.29859224]
[1758162932429,1.18322842,116630.0,116620.0,0.29859224]
[1758162933031,1.44556066,116630.0,116620.0,0.03626]
[1758162935331,1.45405067,116630.0,116620.0,0.03626]
[1758162936134,1.19171843,116630.0,116620.0,0.29859224]
[1758162938235,1.19171843,116630.0,116620.0,0.03626]
[1758162938734,1.45405067,116630.0,116620.0,0.03626]
[1758162942537,1.45405067,116630.0,116620.0,0.29859224]
[1758162943938,1.19171843,116630.0,116620.0,0.29859224]
[1758162947431,1.71161067,116630.0,116610.0,0.01368]
[1758162947742,1.71161067,116630.0,116590.0,0.03486]
[1758162947743,0.02314,116600.0,116590.0,0.03486]
[1758162947945,0.80206,116600.0,116590.0,0.03476]
[1758162948138,1.16286,116600.0,116590.0,0.29709224]
[1758162948739,1.16286,116600.0,116590.0,0.03476]
[1758162949149,1.16612,116600.0,116590.0,0.02118]
[1758162949449,1.16286,116600.0,116590.0,0.03421]
[1758162951334,1.42519224,116600.0,116590.0,0.03421]
[1758162952436,1.42845224,116600.0,116580.0,0.27536224]
[1758162952642,1.44821504,116600.0,116580.0,0.27536224]
[1758162952836,0.3608,116590.0,116580.0,0.29654224]
[1758162953141,0.02314,116590.0,116580.0,0.29654224]
[1758162953341,0.38394,116590.0,116580.0,0.29654224]
[1758162953743,0.38394,116590.0,116580.0,0.29754224]
[1758162954143,0.38394,116590.0,116580.0,0.29854224]
[1758162954740,0.39243867,116590.0,116580.0,0.29854224]
[1758162955340,0.39243867,116590.0,116580.0,0.03621]
[1758162955545,0.46244738,116590.0,116580.0,0.29854224]
[1758162956941,1.24140738,116590.0,116580.0,0.29854224]
[1758162962950,1.24140738,116590.0,116580.0,0.03621]
[1758162963249,1.24140738,116590.0,116580.0,0.29854224]
[1758162965451,1.24140738,116590.0,116580.0,0.03621]
[1758162965652,1.24140738,116590.0,116580.0,0.29854224]
[1758162965852,1.50367995,116590.0,116580.0,0.56075514]
[1758162975354,1.50367995,116590.0,116580.0,0.11337539]
[1758162975559,1.51123995,116590.0,116580.0,0.28545257]
[1758162976855,1.51123995,116590.0,116580.0,0.28445257]
[1758162977057,1.51123995,116590.0,116580.0,0.28345257]
[1758162978160,1.50367995,116590.0,116580.0,0.29657257]
[1758162980866,1.42517257,116590.0,116580.0,0.29657257]
[1758162982666,1.42517257,116590.0,116580.0,0.02118]
[1758162982865,1.42517257,116590.0,116580.0,0.28345257]
[1758162982866,1.43273257,116590.0,116580.0,0.28345257]
[1758162985464,1.43273257,116590.0,116580.0,0.02118]
[1758162985666,1.43273257,116590.0,116580.0,0.28345257]
[1758162986269,1.43273257,116590.0,116580.0,0.02118]
[1758162986567,1.17046,116590.0,116580.0,0.02118]
[1758162986768,1.43273257,116590.0,116580.0,0.02118]
[1758162987666,1.43273257,116590.0,116570.0,0.27540257]
[1758162987866,0.28349257,116580.0,116570.0,0.32649257]
[1758162988071,0.28349257,116580.0,116570.0,0.32639257]
[1758162988264,0.9368904,116580.0,116570.0,0.05109]
[1758162988567,0.9368904,116580.0,116570.0,0.31336257]
[1758162989068,0.9368904,116580.0,116570.0,0.31436257]
[1758162989266,0.9368904,116580.0,116570.0,0.31536257]
[1758162989670,0.67461783,116580.0,116570.0,0.31536257]
[1758162989971,0.67461783,116580.0,116570.0,0.31436257]
[1758162990469,0.67461783,116580.0,116570.0,0.31336257]
[1758162990970,0.66429783,116580.0,116570.0,0.31336257]
[1758162991271,0.66429783,116580.0,116570.0,0.32711257]
[1758162991572,0.66429783,116580.0,116570.0,0.29711257]
[1758162991768,1.44321783,116580.0,116570.0,0.61711257]
[1758162992070,1.44321783,116580.0,116570.0,0.30711257]
[1758162992766,1.18094526,116580.0,116570.0,0.30711257]
[1758162992972,1.44321783,116580.0,116570.0,0.04484]
[1758162993172,1.44321783,116580.0,116570.0,0.30711257]
[1758162993361,0.82014526,116580.0,116570.0,0.74507796]
[1758162993566,1.08241783,116580.0,116570.0,0.74507796]
[1758162993765,1.08241783,116580.0,116570.0,0.54427796]
[1758162994777,1.44321783,116580.0,116570.0,0.54427796]
[1758162997778,1.44321783,116580.0,116570.0,0.46711257]
[1758162999878,1.18094526,116580.0,116570.0,0.46711257]
[1758163000178,1.44321783,116580.0,116570.0,0.46711257]
[1758163001268,0.40202526,116580.0,116570.0,0.46711257]
[1758163001473,1.44317783,116580.0,116570.0,0.46711257]
[1758163002280,1.18090526,116580.0,116570.0,0.46711257]
[1758163002779,1.08237783,116580.0,116570.0,0.82791257]
[1758163003779,1.08237783,116580.0,116570.0,0.56564]
[1758163003981,1.08237783,116580.0,116570.0,0.82791257]
[1758163004280,1.08237783,116580.0,116570.0,0.46711257]
[1758163005282,0.82010526,116580.0,116570.0,0.46711257]
[1758163009379,0.04122526,116580.0,116570.0,0.46711257]
[1758163009585,0.86856676,116590.0,116580.0,0.03557]
[1758163009980,0.86856676,116590.0,116580.0,0.56011514]
[1758163012782,0.08972676,116590.0,116580.0,0.56011514]
[1758163012990,0.06850676,116590.0,116580.0,1.58808053]
[1758163013187,0.02122,116590.0,116580.0,1.51091514]
[1758163013483,0.7986028,116600.0,116590.0,0.01375]
[1758163013687,0.7986028,116600.0,116590.0,0.73578994]
[1758163013688,0.8198228,116600.0,116590.0,0.73578994]
[1758163014188,0.88966765,116600.0,116590.0,0.73578994]
[1758163014585,0.88966765,116600.0,116590.0,0.65864257]
[1758163014792,0.08960765,116600.0,116590.0,1.17091514]
[1758163014988,0.86844765,116600.0,116590.0,1.17091514]
[1758163015288,0.0197628,116600.0,116590.0,1.17191514]
[1758163015488,0.0197628,116600.0,116590.0,1.2576108]
[1758163015689,0.0197628,116600.0,116590.0,1.5976108]
[1758163015889,0.0197628,116600.0,116590.0,1.5986108]
[1758163016090,0.0197628,116600.0,116590.0,1.5976108]
[1758163016291,0.0197628,116600.0,116590.0,1.51946343]
[1758163017692,0.0197628,116600.0,116590.0,1.60518963]
[1758163018395,0.0197628,116600.0,116590.0,2.38398963]
[1758163027703,0.0197628,116600.0,116590.0,2.12171706]
[1758163027907,0.0197628,116600.0,116590.0,2.53157335]
[1758163031103,0.0197628,116600.0,116590.0,2.60872072]
[1758163035509,0.0197628,116600.0,116590.0,2.53157335]
[1758163037013,0.0197628,116600.0,116590.0,2.60872072]
[1758163040612,0.0197628,116600.0,116590.0,2.53157335]
[1758163045623,0.0197628,116600.0,116590.0,2.44584715]
[1758163045921,0.0197628,116600.0,116590.0,2.09584715]
[1758163049823,0.0197628,116600.0,116590.0,2.69157335]
[1758163051524,0.4036358,116640.0,116630.0,0.03589]
[1758163051725,0.4926902,116640.0,116630.0,0.29801886]
[1758163052522,0.47134541,116640.0,116630.0,0.29801886]
[1758163053428,0.47234541,116640.0,116630.0,0.29801886]
[1758163053729,0.47334541,116640.0,116630.0,0.29801886]
[1758163055032,0.48194416,116640.0,116630.0,0.29801886]
[1758163055835,0.47334541,116640.0,116630.0,0.29801886]
[1758163056228,0.49466294,116640.0,116630.0,0.29801886]
[1758163056429,0.49466294,116640.0,116630.0,0.03589]
[1758163056734,0.49466294,116640.0,116630.0,0.29801886]
[1758163057123,0.06615333,116640.0,116630.0,0.29801886]
[1758163057327,0.0448358,116640.0,116630.0,0.29801886]
[1758163062534,0.4056358,116640.0,116630.0,0.29801886]
[1758163064835,0.4056358,116640.0,116630.0,0.03589]
[1758163065036,0.4056358,116640.0,116630.0,0.29801886]
[1758163067338,0.4056358,116640.0,116630.0,0.03589]
[1758163067538,0.4056358,116640.0,116630.0,0.29801886]
[1758163075238,1.1839558,116640.0,116630.0,0.29801886]
[1758163076041,1.1839558,116640.0,116630.0,0.03589]
[1758163076237,1.1839558,116640.0,116630.0,0.29801886]
[1758163076440,1.1839558,116640.0,116630.0,0.03589]
[1758163076740,1.1839558,116640.0,116630.0,0.29801886]
[1758163080843,1.44608466,116640.0,116630.0,0.29801886]
[1758163081945,1.1839558,116640.0,116630.0,0.29801886]
[1758163087647,1.70364466,116640.0,116620.0,0.01305]
[1758163087849,0.9140537,116630.0,116620.0,0.0001]
[1758163088046,0.9140537,116630.0,116610.0,0.09022265]
[1758163088242,1.6848137,116620.0,116610.0,0.11323265]
[1758163088446,1.6951337,116620.0,116610.0,0.29814185]
[1758163088648,1.6951337,116620.0,116600.0,0.8886445]
[1758163088848,0.28351185,116610.0,116600.0,0.9416545]
[1758163089151,0.28351185,116610.0,116600.0,1.2415545]
[1758163089354,0.28351185,116610.0,116600.0,0.67937265]
[1758163089552,0.28351185,116610.0,116600.0,0.86438185]
[1758163089756,0.28351185,116610.0,116600.0,0.31814185]
[1758163090752,0.28351185,116610.0,116600.0,0.47814185]
[1758163090952,0.02133,116610.0,116600.0,0.7403237]
[1758163095854,1.18038128,116620.0,116610.0,0.01312]
[1758163096053,1.18038128,116620.0,116610.0,0.29831185]
[1758163097356,1.18038128,116620.0,116610.0,0.29931185]
[1758163097559,1.18038128,116620.0,116610.0,0.30031185]
[1758163098352,1.44256313,116620.0,116610.0,0.30031185]
[1758163099860,1.45288313,116620.0,116610.0,0.30031185]
[1758163100157,1.44256313,116620.0,116610.0,0.30031185]
[1758163100749,1.44256313,116620.0,116610.0,0.03813]
[1758163101048,1.44256313,116620.0,116610.0,0.30031185]
[1758163101251,0.40202128,116620.0,116610.0,0.30031185]
[1758163101452,1.18042128,116620.0,116610.0,0.30031185]
[1758163102350,0.40202128,116620.0,116610.0,0.30031185]
[1758163102755,1.18042128,116620.0,116610.0,0.30031185]
[1758163108563,1.18042128,116620.0,116610.0,0.03813]
[1758163108758,1.18042128,116620.0,116610.0,0.30031185]
[1758163109562,0.81962128,116620.0,116610.0,0.9232937]
[1758163109759,0.01989128,116620.0,116610.0,1.4732937]
[1758163109958,0.01989128,116620.0,116610.0,1.1732937]
[1758163110159,0.01989128,116620.0,116610.0,2.1317337]
[1758163111560,0.01989128,116620.0,116610.0,2.47962705]
[1758163111766,0.01989128,116620.0,116610.0,3.0267997]
[1758163111967,0.01989128,116620.0,116610.0,2.94962705]
[1758163112966,0.01989128,116620.0,116610.0,2.72962705]
[1758163114168,0.01989128,116620.0,116610.0,3.03962705]
[1758163115363,0.20877898,116640.0,116630.0,0.03495]
[1758163115570,0.0199858,116640.0,116630.0,2.0085137]
[1758163115866,0.0199858,116640.0,116630.0,2.08552116]
[1758163116270,0.0199858,116640.0,116630.0,2.0085137]
[1758163116477,0.0209858,116640.0,116630.0,2.0085137]
[1758163118276,0.0219858,116640.0,116630.0,2.0085137]
[1758163123678,0.0219858,116640.0,116630.0,2.0942105]
[1758163123868,0.0219858,116640.0,116630.0,2.0085137]
[1758163131683,0.0219858,116640.0,116630.0,2.35639235]
[1758163132285,0.0219858,116640.0,116630.0,2.0942105]
[1758163134286,1.16184,116670.0,116660.0,0.03495]
[1758163134673,0.38356,116670.0,116660.0,0.03495]
[1758163135082,0.38356,116670.0,116660.0,0.5593137]
[1758163135792,0.64974185,116670.0,116660.0,0.03495]
[1758163135996,0.64974185,116670.0,116660.0,0.5593137]
[1758163136195,0.39056,116670.0,116660.0,0.5593137]
[1758163136496,0.65274185,116670.0,116660.0,0.5593137]
[1758163136796,0.66144956,116670.0,116660.0,0.5593137]
[1758163137598,0.65274185,116670.0,116660.0,0.5593137]
[1758163138796,0.39056,116670.0,116660.0,0.5593137]
[1758163140497,0.38856,116670.0,116660.0,0.5593137]
[1758163141004,0.38456,116670.0,116660.0,0.5593137]
[1758163141190,0.38656,116670.0,116660.0,0.5593137]
[1758163141495,0.40780342,116670.0,116660.0,0.5593137]
[1758163141692,0.66998527,116670.0,116660.0,0.5593137]
[1758163141896,0.40780342,116670.0,116660.0,0.5593137]
[1758163142592,0.02576,116670.0,116660.0,0.83885051]
[1758163143192,0.02576,116670.0,116660.0,0.57666866]
[1758163144298,0.003,116670.0,116660.0,0.57666866]
[1758163144601,0.02559,116670.0,116660.0,0.57666866]
[1758163147794,0.02559,116670.0,116660.0,0.31419479]
[1758163147996,0.02559,116670.0,116660.0,0.51419479]
[1758163156302,0.02559,116670.0,116660.0,0.57575179]
[1758163159511,0.65583983,116670.0,116660.0,0.082857]
[1758163159711,0.90583983,116670.0,116660.0,0.0213]
[1758163160010,0.90583983,116670.0,116660.0,0.03433]
[1758163160308,0.90583983,116670.0,116660.0,0.29621983]
[1758163160514,0.63639,116670.0,116660.0,0.29621983]
[1758163161305,0.64395,116670.0,116660.0,0.29621983]
[1758163161510,1.68391983,116670.0,116660.0,0.29621983]
[1758163162517,1.68391983,116670.0,116660.0,0.0213]
[1758163164415,1.42203,116670.0,116660.0,0.0213]
[1758163164715,1.42203,116670.0,116660.0,0.28318983]
[1758163165516,1.42203,116670.0,116660.0,0.0213]
[1758163167216,1.68391983,116670.0,116650.0,0.33719683]
[1758163167420,1.43391983,116670.0,116650.0,0.33719683]
[1758163167814,0.38339,116660.0,116650.0,0.36002022]
[1758163168019,0.38339,116660.0,116650.0,0.35992022]
[1758163170918,0.02259,116660.0,116650.0,0.35992022]
[1758163171218,0.02359,116660.0,116650.0,0.35992022]
[1758163177028,0.02359,116660.0,116650.0,0.35830825]
[1758163181323,0.001,116660.0,116650.0,0.35830825]
[1758163181521,0.0228,116660.0,116650.0,0.35830825]
[1758163183017,0.0228,116660.0,116650.0,0.29666786]
[1758163200451,0.0228,116660.0,116650.0,0.37367532]
[1758163201451,0.0228,116660.0,116650.0,0.11178549]
[1758163201747,0.0228,116660.0,116650.0,0.37367532]
[1758163204747,0.0228,116660.0,116650.0,0.29666786]
[1758163209751,0.0228,116660.0,116650.0,0.29673236]
[1758163210449,0.0228,116660.0,116650.0,0.03477803]
[1758163210650,0.0228,116660.0,116650.0,0.29673236]
[1758163214050,0.0228,116660.0,116650.0,0.37373982]
[1758163214953,0.0228,116660.0,116650.0,0.63569415]
[1758163214954,0.001,116660.0,116650.0,0.63569415]
[1758163215254,0.001,116660.0,116650.0,0.99649415]
[1758163215450,0.001,116660.0,116650.0,0.91948669]
[1758163215754,0.001,116660.0,116650.0,1.43144102]
[1758163216050,0.001,116660.0,116650.0,1.75844848]
[1758163216257,0.001,116660.0,116650.0,1.87521676]
[1758163216453,0.001,116660.0,116650.0,1.95234478]
[1758163216649,0.001,116660.0,116650.0,1.76712312]
[1758163217454,0.001,116660.0,116650.0,1.50516879]
[1758163217757,1.20954716,116680.0,116650.0,1.50516879]
[1758163217956,1.23149716,116680.0,116670.0,0.29691433]
[1758163219659,0.0001,116680.0,116670.0,0.56086866]
[1758163219859,0.0001,116680.0,116670.0,0.62255541]
[1758163220463,0.0001,116680.0,116670.0,0.92266866]
[1758163220863,0.0001,116680.0,116670.0,0.98431188]
[1758163221164,0.0001,116680.0,116670.0,0.92266866]
[1758163221462,0.0001,116680.0,116670.0,0.98429467]
[1758163222562,0.0001,116680.0,116670.0,0.99295966]
[1758163223362,0.02205,116680.0,116670.0,0.469051]
[1758163223564,0.02205,116680.0,116670.0,0.99295966]
[1758163224456,0.0001,116680.0,116670.0,0.99295966]
[1758163224863,0.02205,116680.0,116670.0,0.99295966]
[1758163225064,0.0001,116680.0,116670.0,0.99295966]
[1758163226162,0.02205,116680.0,116670.0,0.99295966]
[1758163230165,0.02205,116680.0,116670.0,0.469051]
[1758163230466,0.0001,116680.0,116670.0,0.99295966]
[1758163231161,0.02188,116680.0,116670.0,0.99295966]
[1758163236268,0.02188,116680.0,116670.0,0.93133365]
[1758163238067,0.0001,116680.0,116670.0,0.93133365]
[1758163239668,0.02188,116680.0,116670.0,0.93133365]
[1758163239866,0.02188,116680.0,116670.0,0.40742499]
[1758163240067,0.02188,116680.0,116670.0,0.93133365]
[1758163242371,0.02188,116680.0,116670.0,0.92266866]
[1758163242571,0.02188,116680.0,116670.0,0.56186866]
[1758163242871,0.02188,116680.0,116670.0,0.29991433]
[1758163243772,0.0001,116680.0,116670.0,0.56186866]
[1758163244769,0.38258,116700.0,116690.0,0.03445]
[1758163244966,0.38258,116700.0,116690.0,0.55835866]
[1758163244967,0.02178,116700.0,116690.0,0.55835866]
[1758163245173,0.02178,116700.0,116690.0,0.56706437]
[1758163245368,0.27178,116700.0,116690.0,0.56706437]
[1758163245567,0.27178,116700.0,116690.0,0.92786437]
[1758163246269,0.34098958,116700.0,116690.0,0.98949038]
[1758163246972,0.09098958,116700.0,116690.0,0.98949038]
[1758163247175,0.09198958,116700.0,116690.0,0.98949038]
[1758163247977,0.02278,116700.0,116690.0,0.98949038]
[1758163248676,0.001,116700.0,116690.0,0.98949038]
[1758163250980,0.02278,116700.0,116690.0,0.98949038]
[1758163251173,0.02278,116700.0,116690.0,0.35803034]
[1758163251569,0.64553433,116700.0,116690.0,0.35803034]
[1758163251770,1.22499216,116700.0,116690.0,0.03445]
[1758163252081,0.96303783,116700.0,116690.0,0.29640433]
[1758163252576,0.97059783,116700.0,116690.0,0.28358433]
[1758163254683,0.97059783,116700.0,116690.0,0.02163]
[1758163255084,0.97059783,116700.0,116690.0,0.28358433]
[1758163255382,1.23255216,116700.0,116690.0,0.28358433]
[1758163256083,0.7086435,116700.0,116690.0,0.28358433]
[1758163256284,0.97059783,116700.0,116690.0,0.28358433]
[1758163256475,0.96303783,116700.0,116690.0,0.29640433]
[1758163256677,0.7010835,116700.0,116690.0,0.29640433]
[1758163256880,0.7010835,116700.0,116690.0,0.03445]
[1758163257086,0.7010835,116700.0,116690.0,0.29640433]
[1758163257388,0.96303783,116700.0,116690.0,0.29640433]
[1758163258382,0.96303783,116700.0,116690.0,0.03445]
[1758163258588,0.96303783,116700.0,116690.0,0.29640433]
[1758163258776,0.7010835,116700.0,116690.0,0.29640433]
[1758163258984,0.96303783,116700.0,116690.0,0.29640433]
[1758163259289,0.7010835,116700.0,116690.0,0.29640433]
[1758163259485,0.96303783,116700.0,116690.0,0.29640433]
[1758163260389,0.7010835,116700.0,116690.0,0.29640433]
[1758163260588,0.96303783,116700.0,116690.0,0.29640433]
[1758163261990,1.2317235,116700.0,116690.0,0.55835866]
[1758163266901,1.2317235,116700.0,116690.0,0.29640433]
[1758163267199,1.2318235,116700.0,116690.0,0.29640433]
[1758163268287,1.2318235,116700.0,116690.0,0.55835866]
[1758163268996,1.2318235,116700.0,116690.0,0.98078467]
[1758163268997,0.0011,116700.0,116690.0,0.98078467]
[1758163269295,0.0011,116700.0,116690.0,1.16915866]
[1758163269501,0.0011,116700.0,116690.0,1.94975866]
[1758163269894,0.0011,116700.0,116690.0,1.94924382]
[1758163270094,0.0011,116700.0,116690.0,2.0108535]
[1758163271698,0.0011,116700.0,116690.0,1.74915659]
[1758163273304,0.0011,116700.0,116690.0,1.68754691]
[1758163273503,0.0011,116700.0,116690.0,1.94924382]
[1758163273703,0.0011,116700.0,116690.0,2.0108594]
[1758163274707,0.0011,116700.0,116690.0,1.74916249]
[1758163275105,0.0011,116700.0,116690.0,2.0108594]
[1758163275499,0.0011,116700.0,116690.0,1.94924382]
[1758163275706,0.0011,116700.0,116690.0,1.50297693]
[1758163276100,0.0011,116700.0,116690.0,2.02637075]
[1758163276400,0.0011,116700.0,116690.0,1.94924382]
[1758163277612,0.0011,116700.0,116690.0,1.68754691]
[1758163280018,0.0011,116700.0,116690.0,1.74914591]
[1758163282519,0.0011,116700.0,116690.0,2.01084282]
[1758163283518,0.0011,116700.0,116690.0,1.74914591]
[1758163285419,0.0011,116700.0,116690.0,2.01084282]
[1758163286620,0.0011,116700.0,116690.0,1.487449]
[1758163286814,0.0011,116700.0,116690.0,1.38834591]
[1758163295128,0.02337,116700.0,116690.0,0.60774591]
[1758163295334,0.63417,116700.0,116690.0,1.13726591]
[1758163296328,0.63417,116700.0,116690.0,1.07566691]
[1758163297331,0.63417,116700.0,116690.0,0.29614691]
[1758163298434,0.63417,116700.0,116690.0,0.37327384]
[1758163299332,0.38417,116700.0,116690.0,0.37327384]
[1758163304036,0.38417,116700.0,116690.0,0.29614691]
[1758163304736,0.3619,116700.0,116690.0,0.03445]
[1758163304937,0.02337,116700.0,116690.0,0.29614691]
[1758163305232,0.02337,116700.0,116690.0,0.37327384]
[1758163305435,0.0011,116700.0,116690.0,1.79864382]
[1758163305638,0.0011,116700.0,116690.0,1.88429622]
[1758163305844,0.0011,116700.0,116690.0,1.99238986]
[1758163306141,0.0011,116700.0,116690.0,1.90673746]
[1758163306335,0.0011,116700.0,116690.0,1.34504055]
[1758163306534,0.0011,116700.0,116690.0,1.60673746]
[1758163307541,0.0011,116700.0,116690.0,1.34504055]
[1758163308943,0.0001,116700.0,116690.0,1.34604055]
[1758163310141,0.0001,116700.0,116690.0,1.23794691]
[1758163315348,0.0001,116700.0,116690.0,1.31496088]
[1758163315543,0.0001,116700.0,116690.0,1.06496088]
[1758163321253,0.27237,116700.0,116690.0,0.37416088]
[1758163321453,0.27237,116700.0,116690.0,0.35875456]
[1758163323451,0.27237,116700.0,116690.0,0.69875456]
[1758163324257,0.2501,116700.0,116690.0,1.05955456]
[1758163325749,0.2501,116700.0,116690.0,0.74496088]
[1758163325953,0.2501,116700.0,116690.0,0.89496088]
[1758163326254,0.2501,116700.0,116690.0,0.87956153]
[1758163326654,0.2501,116700.0,116690.0,1.06956153]
[1758163327153,0.2501,116700.0,116690.0,0.82794691]
[1758163328550,0.27277,116700.0,116690.0,0.82694691]
[1758163328754,0.27277,116700.0,116690.0,0.88857009]
[1758163329259,0.27277,116700.0,116690.0,0.88957009]
[1758163330350,0.27277,116700.0,116690.0,0.52877009]
[1758163330755,0.27277,116700.0,116690.0,0.26707318]
[1758163330958,0.27277,116700.0,116690.0,0.52877009]
[1758163331756,0.27277,116700.0,116690.0,0.52884293]
[1758163332954,0.38357,116700.0,116690.0,0.26707318]
[1758163333256,0.64533975,116700.0,116690.0,0.52884293]
[1758163333853,0.64533975,116700.0,116690.0,0.26707318]
[1758163334153,1.9391895,116700.0,116690.0,0.09707318]
[1758163334458,1.9483595,116700.0,116690.0,0.001]
[1758163341663,0.03023,116690.0,116680.0,0.0001]
[1758163341962,0.65289975,116690.0,116670.0,0.33621293]
[1758163342155,1.42731975,116680.0,116670.0,0.35810293]
[1758163342357,1.42741975,116680.0,116670.0,0.35800293]
[1758163344665,1.42741975,116680.0,116670.0,0.35900293]
[1758163345465,1.23460419,116680.0,116670.0,0.29737975]
[1758163345964,1.49637394,116680.0,116670.0,0.29737975]
[1758163346355,1.49637394,116680.0,116670.0,0.35900293]
[1758163346551,1.23460419,116680.0,116670.0,0.35900293]
[1758163346952,0.45252419,116680.0,116670.0,0.35900293]
[1758163347152,1.23440419,116680.0,116670.0,0.35900293]
[1758163349466,1.49617394,116680.0,116670.0,0.35900293]
[1758163352470,1.23440419,116680.0,116670.0,0.35900293]
[1758163352766,0.87360419,116680.0,116670.0,0.35900293]
[1758163353665,0.09172419,116680.0,116670.0,0.35900293]
[1758163353869,0.80453,116680.0,116670.0,0.35900293]
[1758163354060,0.0001,116680.0,116670.0,1.23157268]
[1758163356671,0.0001,116680.0,116670.0,0.96980293]
[1758163356971,0.02263,116680.0,116670.0,0.96980293]
[1758163358674,0.02263,116680.0,116670.0,0.60900293]
[1758163359067,0.0001,116680.0,116670.0,0.60900293]
[1758163359267,0.0001,116680.0,116670.0,0.62077268]
[1758163359477,0.0001,116680.0,116670.0,0.35900293]
[1758163360168,0.0001,116680.0,116670.0,0.98157268]
[1758163362365,0.0001,116680.0,116670.0,0.9199495]
[1758163363576,0.0001,116680.0,116670.0,0.99696347]
[1758163365182,0.38343,116680.0,116670.0,0.11262397]
[1758163365479,0.38343,116680.0,116670.0,0.37439372]
[1758163366278,0.38343,116680.0,116670.0,0.43607515]
[1758163366578,0.02263,116680.0,116670.0,0.35906118]
[1758163367581,0.0001,116680.0,116670.0,0.98163093]
[1758163373386,0.0001,116680.0,116670.0,0.71986118]
[1758163375085,0.0001,116680.0,116670.0,0.98163093]
[1758163376288,0.02263,116680.0,116670.0,0.65817975]
[1758163376587,0.02263,116680.0,116670.0,0.73519372]
[1758163382382,0.02263,116680.0,116670.0,0.47342397]
[1758163382578,0.38343,116680.0,116670.0,0.37439372]
[1758163382778,0.38343,116680.0,116670.0,0.29737975]
[1758163384391,0.38343,116680.0,116670.0,0.37439372]
[1758163384695,0.38343,116680.0,116670.0,0.29737975]
[1758163386492,0.38343,116680.0,116670.0,0.37439372]
[1758163386892,0.64519975,116680.0,116670.0,0.37439372]
[1758163387296,0.38343,116680.0,116670.0,0.37439372]
[1758163387493,0.64519975,116680.0,116670.0,0.37439372]
[1758163387794,0.38343,116680.0,116670.0,0.37439372]
[1758163391905,0.38343,116680.0,116670.0,0.37448332]
[1758163398517,0.02263,116680.0,116670.0,0.37448332]
[1758163398709,0.38343,116680.0,116670.0,0.37448332]
[1758163406116,0.38343,116680.0,116670.0,0.35917727]
[1758163407017,0.39192947,116680.0,116670.0,0.35917727]
[1758163407617,0.03112947,116680.0,116670.0,0.35917727]
[1758163407816,0.39192947,116680.0,116670.0,0.35917727]
[1758163408518,0.65378882,116680.0,116670.0,0.35917727]
[1758163408718,0.39192947,116680.0,116670.0,0.35917727]
[1758163411621,0.65378882,116680.0,116670.0,0.35917727]
[1758163413023,0.39192947,116680.0,116670.0,0.35917727]
[1758163413724,0.65378882,116680.0,116670.0,0.35917727]
[1758163414116,0.65378882,116680.0,116670.0,0.37448332]
[1758163416326,0.65378882,116680.0,116670.0,0.35917261]
[1758163417124,0.65378882,116680.0,116670.0,0.09731326]
[1758163417424,0.39192947,116680.0,116670.0,0.09731326]
[1758163417720,0.39192947,116680.0,116670.0,0.35917261]